bitfinex-derivatives/quotes_SOLF0:USTF0_20260107
["timestamp","ask_amount","ask_price","bid_price","bid_amount"]
[1767759746222,84.84,139.4,139.29,100.5691]
[1767759746223,200.9038,139.47,139.34,0.30482724]
[1767759746407,2.70132472,139.45,139.34,0.30482724]
[1767759747621,6.4594,139.43,139.36,6.4622]
[1767759747823,2.70132472,139.45,139.34,0.30482724]
[1767759748320,2.70132472,139.43,139.34,0.30482724]
[1767759748518,2.70132472,139.43,139.35,6.76742724]
[1767759749412,6.4589,139.44,139.35,6.76742724]
[1767759749611,2.70132472,139.45,139.36,6.76692724]
[1767759750424,2.70132472,139.45,139.35,0.30482724]
[1767759751127,6.4595,139.42,139.35,0.30482724]
[1767759751334,2.70132472,139.45,139.35,0.30482724]
[1767759752715,6.4588,139.44,139.37,0.30004589]
[1767759753730,6.4582,139.45,139.38,0.30004589]
[1767759753923,91.2982,139.45,139.38,0.30004589]
[1767759758732,6.4586,139.44,139.36,0.30004589]
[1767759760924,6.4591,139.43,139.36,0.30004589]
[1767759761125,87.54132472,139.45,139.36,0.30004589]
[1767759762722,6.4589,139.44,139.36,6.76224589]
[1767759763229,6.459,139.43,139.36,6.76224589]
[1767759764925,6.4595,139.42,139.36,6.76224589]
[1767759765131,6.4595,139.42,139.36,6.4622]
[1767759766027,6.4595,139.42,139.36,6.76224589]
[1767759769531,6.4589,139.44,139.36,6.76224589]
[1767759769743,6.4589,139.44,139.37,6.76154589]
[1767759770039,91.2789,139.44,139.38,0.30004589]
[1767759770427,84.82,139.44,139.38,6.76134589]
[1767759772636,91.2785,139.44,139.38,6.76134589]
[1767759773637,87.52132472,139.44,139.36,6.76184589]
[1767759774639,6.4595,139.42,139.36,6.76184589]
[1767759779938,6.4595,139.42,139.34,15.39337671]
[1767759780134,6.4595,139.42,139.35,0.31809585]
[1767759780438,6.46,139.41,139.35,0.31809585]
[1767759780754,2.70132472,139.42,139.33,9.24877256]
[1767759781240,84.82,139.41,139.34,8.93067671]
[1767759781441,6.4605,139.4,139.34,15.39377671]
[1767759781642,84.82,139.41,139.34,15.70042345]
[1767759781840,84.82,139.41,139.34,9.23732345]
[1767759782639,84.82,139.41,139.35,6.4626]
[1767759784745,84.82,139.41,139.36,6.76884674]
[1767759786548,86.54729011,139.41,139.36,6.76884674]
[1767759786848,86.54729011,139.41,139.36,6.4622]
[1767759788446,86.54729011,139.41,139.36,15.39287671]
[1767759789044,100.4507,139.47,139.37,6.76834674]
[1767759789246,1.72729011,139.44,139.37,15.69902345]
[1767759790648,8.18579011,139.44,139.37,15.69902345]
[1767759792957,8.18579011,139.44,139.38,0.30664674]
[1767759793159,84.82,139.46,139.39,0.30664674]
[1767759793352,86.54729011,139.46,139.39,9.23732345]
[1767759794449,1.72729011,139.44,139.39,8.93067671]
[1767759795557,1.72729011,139.42,139.38,8.93067671]
[1767759795754,1.72729011,139.4,139.35,13.44030356]
[1767759795950,1.72729011,139.4,139.33,0.30664674]
[1767759796158,1.72729011,139.38,139.33,0.30664674]
[1767759796356,84.82,139.41,139.27,100.5875]
[1767759796357,1.72729011,139.34,139.3,13.7469503]
[1767759796657,1.72729011,139.34,139.3,0.30664674]
[1767759797251,1.72729011,139.36,139.3,6.77154674]
[1767759800052,6.4612,139.39,139.31,6.77114674]
[1767759800246,1.72729011,139.37,139.31,6.77114674]
[1767759802958,6.4603,139.41,139.33,0.30664674]
[1767759803270,1.72729011,139.39,139.33,0.30664674]
[1767759804774,1.72729011,139.39,139.33,6.77024674]
[1767759805571,1.72729011,139.37,139.33,0.30664674]
[1767759807673,1.72729011,139.37,139.31,6.4642]
[1767759807868,1.72729011,139.35,139.3,0.30664674]
[1767759809979,1.72729011,139.35,139.3,6.77154674]
[1767759810781,185.3186,139.4,139.3,6.77154674]
[1767759810973,1.72729011,139.36,139.3,6.77154674]
[1767759812377,6.4613,139.39,139.32,0.30877354]
[1767759812580,1.72729011,139.39,139.32,0.30877354]
[1767759813679,1.72729011,139.39,139.34,6.463]
[1767759819885,1.72729011,139.39,139.34,6.77177354]
[1767759822084,6.4603,139.41,139.35,0.30877354]
[1767759822284,8.18759011,139.41,139.35,6.77137354]
[1767759822983,8.18759011,139.41,139.35,0.30877354]
[1767759823187,1.72729011,139.39,139.32,0.30877354]
[1767759824586,1.72729011,139.39,139.34,6.4632]
[1767759827885,1.72729011,139.39,139.34,6.77197354]
[1767759830292,1.72729011,139.39,139.35,6.4626]
[1767759830487,1.72729011,139.41,139.35,0.30877354]
[1767759830978,93.02629011,139.43,139.37,6.4617]
[1767759831191,93.02629011,139.43,139.37,6.77047354]
[1767759831991,6.4597,139.42,139.37,0.30877354]
[1767759832291,1.72729011,139.41,139.35,6.77097354]
[1767759833691,8.18719011,139.41,139.35,6.77097354]
[1767759836390,1.72729011,139.39,139.33,9.24919171]
[1767759836593,1.72729011,139.39,139.34,0.30877354]
[1767759837595,1.72729011,139.39,139.34,6.77187354]
[1767759839192,1.72729011,139.39,139.34,15.71229171]
[1767759844519,6.4614,139.38,139.34,8.94041817]
[1767759844800,1.72729011,139.37,139.33,8.94041817]
[1767759845201,8.18909011,139.37,139.33,8.94041817]
[1767759845400,8.18909011,139.37,139.31,8.94041817]
[1767759845800,8.18909011,139.37,139.31,9.2679675]
[1767759847903,6.4623,139.36,139.31,9.2679675]
[1767759848299,6.4623,139.36,139.31,0.32754933]
[1767759850114,6.4618,139.37,139.31,0.32754933]
[1767759857614,6.4618,139.37,139.31,6.79204933]
[1767759862216,6.4622,139.36,139.31,0.32754933]
[1767759868623,9.16258092,139.38,139.31,6.79204933]
[1767759869917,6.4615,139.38,139.31,6.79204933]
[1767759871425,6.4615,139.38,139.32,0.32754933]
[1767759871627,6.4615,139.38,139.32,6.79154933]
[1767759871829,6.4609,139.39,139.33,0.3275558]
[1767759872425,6.4604,139.41,139.33,6.7910558]
[1767759873125,6.4604,139.4,139.33,6.7910558]
[1767759875536,2.70108092,139.4,139.31,8.94041817]
[1767759875725,2.70108092,139.38,139.3,9.26797397]
[1767759876525,6.4624,139.36,139.3,9.26797397]
[1767759879833,103.21398092,139.38,139.3,8.94041817]
[1767759880037,2.70108092,139.36,139.28,0.3275558]
[1767759881530,6.4636,139.33,139.28,0.3275558]
[1767759882345,6.4629,139.35,139.28,6.7934558]
[1767759882836,2.70108092,139.36,139.28,6.7934558]
[1767759883243,2.70108092,139.36,139.29,0.3275558]
[1767759884548,6.4632,139.34,139.29,0.3275558]
[1767759890052,6.4627,139.35,139.29,0.3275558]
[1767759891153,6.4623,139.36,139.3,0.3275558]
[1767759892164,84.86,139.37,139.31,0.3275558]
[1767759893554,91.3218,139.37,139.31,0.3275558]
[1767759895855,91.3218,139.37,139.31,6.7920558]
[1767759902161,6.4612,139.39,139.33,0.31126526]
[1767759902560,84.86,139.4,139.33,0.31126526]
[1767759902764,84.86,139.4,139.34,6.463]
[1767759902965,84.86,139.4,139.33,0.31126526]
[1767759904363,6.4609,139.39,139.33,6.4636]
[1767759907967,2.70108092,139.38,139.31,6.4642]
[1767759908171,2.70108092,139.38,139.29,9.25168343]
[1767759908560,1.72896588,139.35,139.29,9.25168343]
[1767759909566,1.72896588,139.35,139.3,6.465]
[1767759911068,1.72896588,139.36,139.31,6.77576526]
[1767759911969,1.72896588,139.36,139.31,0.31126526]
[1767759912566,1.72896588,139.36,139.31,6.77576526]
[1767759912871,1.72896588,139.36,139.29,9.25168343]
[1767759914576,8.19126588,139.36,139.29,15.71688343]
[1767759918975,8.19126588,139.36,139.3,0.31126526]
[1767759921176,8.19126588,139.36,139.3,6.77626526]
[1767759922175,8.19126588,139.36,139.3,15.71668343]
[1767759933988,8.19126588,139.36,139.3,9.25168343]
[1767759934389,6.4628,139.35,139.3,9.25168343]
[1767759935087,6.4628,139.35,139.3,8.94041817]
[1767759935293,1.72896588,139.32,139.27,13.44030356]
[1767759935586,1.72896588,139.32,139.26,13.75863438]
[1767759936590,8.19346588,139.32,139.26,13.75863438]
[1767759937388,8.19346588,139.32,139.26,20.22543438]
[1767759937692,8.19346588,139.32,139.27,0.31833082]
[1767759945311,8.19346588,139.32,139.27,13.75863438]
[1767759948802,84.86,139.35,139.28,0.31833082]
[1767759949003,1.72896588,139.36,139.29,0.31833082]
[1767759950708,6.4631,139.35,139.29,0.31833082]
[1767759955309,1.72896588,139.36,139.29,0.31833082]
[1767759956918,1.72896588,139.36,139.29,6.78383082]
[1767759957510,1.72896588,139.36,139.29,6.4655]
[1767759957915,5.43229182,139.35,139.29,6.4655]
[1767759958218,5.43229182,139.34,139.29,6.78383082]
[1767759958416,5.43229182,139.33,139.29,6.78383082]
[1767759958618,9.182e-05,139.32,139.29,6.78383082]
[1767759958820,1.72896588,139.36,139.29,6.78383082]
[1767759960419,1.72896588,139.36,139.25,86.58896588]
[1767759960810,1.72896588,139.36,139.29,6.465]
[1767759961622,1.72896588,139.36,139.3,6.4649]
[1767759962223,8.19126588,139.36,139.29,6.79181926]
[1767759962821,1.72896588,139.36,139.29,6.79181926]
[1767759963625,1.72896588,139.34,139.29,0.32631926]
[1767759964626,8.19216588,139.34,139.29,0.32631926]
[1767759970532,6.4632,139.34,139.29,0.32631926]
[1767759970736,5.36201924,139.33,139.29,0.32631926]
[1767759970929,5.36201924,139.32,139.29,0.32631926]
[1767759971131,6.4632,139.34,139.29,0.32631926]
[1767759971429,5.36355683,139.33,139.29,0.32631926]
[1767759971628,5.36355683,139.32,139.29,0.32631926]
[1767759971829,5.36355683,139.31,139.29,0.32631926]
[1767759972036,6.4632,139.34,139.29,0.32631926]
[1767759972833,6.4637,139.33,139.27,0.30948346]
[1767759974834,6.4637,139.33,139.27,6.77568346]
[1767759975731,6.4637,139.33,139.27,6.4662]
[1767759975934,6.4637,139.33,139.28,0.30948346]
[1767759978238,6.4632,139.34,139.28,0.30948346]
[1767759979553,6.4626,139.36,139.28,0.30948346]
[1767759980241,6.4626,139.36,139.29,6.77488346]
[1767759985643,6.4626,139.36,139.3,6.77448346]
[1767759987443,84.86,139.37,139.32,0.30948346]
[1767759987950,84.86,139.4,139.32,0.30948346]
[1767759988750,6.4609,139.39,139.32,6.77338346]
[1767759990052,6.4613,139.38,139.32,6.77338346]
[1767759991657,6.4613,139.38,139.32,0.30948346]
[1767759991846,84.86,139.4,139.28,0.304279]
[1767759991847,2.7020169,139.37,139.28,0.304279]
[1767759992657,6.4632,139.34,139.28,0.304279]
[1767759993851,2.7020169,139.37,139.28,0.304279]
[1767759994649,6.4628,139.35,139.28,6.770179]
[1767759998756,6.4628,139.35,139.29,0.304279]
[1767760000257,6.462,139.37,139.3,0.304279]
[1767760001459,6.462,139.37,139.31,6.768779]
[1767760002661,6.4623,139.36,139.31,0.304279]
[1767760005761,6.4628,139.35,139.29,0.304279]
[1767760005963,2.7020169,139.35,139.27,13.75458254]
[1767760006257,6.4637,139.33,139.27,6.770179]
[1767760006452,6.4637,139.33,139.27,0.304279]
[1767760011865,6.4637,139.33,139.27,6.770679]
[1767760014366,6.4637,139.33,139.28,0.304279]
[1767760015468,6.4632,139.34,139.28,0.304279]
[1767760017269,6.4632,139.34,139.28,6.770079]
[1767760018169,6.4632,139.34,139.29,0.304279]
[1767760018669,6.4632,139.34,139.27,0.304279]
[1767760019572,6.4632,139.34,139.27,6.770679]
[1767760020168,6.4632,139.34,139.28,6.79499217]
[1767760020565,6.4626,139.36,139.29,0.32909217]
[1767760021079,100.4758,139.43,139.31,0.32909217]
[1767760021263,87.5620169,139.42,139.31,0.32909217]
[1767760021570,6.4615,139.38,139.32,0.3290977]
[1767760025374,6.4618,139.37,139.32,0.3290977]
[1767760025575,6.4618,139.37,139.31,6.4645]
[1767760027573,6.4618,139.37,139.3,0.3290977]
[1767760027875,6.4618,139.37,139.3,9.28049769]
[1767760028578,6.4618,139.37,139.31,0.3290977]
[1767760028877,2.7020169,139.4,139.31,0.3290977]
[1767760029475,6.4613,139.38,139.31,6.7935977]
[1767760034072,6.4619,139.37,139.31,0.3290977]
[1767760034273,1.72802767,139.37,139.29,6.7940977]
[1767760035173,1.72802767,139.37,139.3,0.3290977]
[1767760035581,6.4623,139.36,139.3,0.3290977]
[1767760039882,6.4623,139.36,139.3,6.7939977]
[1767760040293,6.4618,139.38,139.31,0.3290977]
[1767760040584,6.4618,139.38,139.33,0.3290977]
[1767760043081,101.72499233,139.43,139.33,6.7923977]
[1767760043283,1.72802767,139.41,139.33,6.7923977]
[1767760044583,6.4605,139.4,139.33,6.7923977]
[1767760046579,6.4609,139.39,139.33,6.7923977]
[1767760050283,6.4609,139.39,139.34,0.3290977]
[1767760052087,8.18892767,139.39,139.32,0.30113235]
[1767760052482,8.18892767,139.39,139.32,6.76523235]
[1767760055586,8.18892767,139.39,139.33,0.30113235]
[1767760057388,8.18892767,139.39,139.33,6.76473235]
[1767760058589,1.72802767,139.39,139.31,0.30113235]
[1767760059586,6.4619,139.37,139.31,6.76563235]
[1767760060410,6.4622,139.36,139.31,0.30113235]
[1767760060592,6.4622,139.36,139.29,19.91540354]
[1767760060593,6.4622,139.36,139.29,13.75143589]
[1767760061390,6.4622,139.36,139.3,0.30113235]
[1767760061588,11.81317358,139.35,139.29,13.75143589]
[1767760061791,6.4628,139.35,139.29,13.75143589]
[1767760062490,8.19012767,139.37,139.31,0.30113235]
[1767760062690,5.35161512,139.36,139.31,0.30113235]
[1767760062889,5.35161512,139.35,139.31,0.30113235]
[1767760063092,8.19012767,139.37,139.31,0.30113235]
[1767760063292,5.35317305,139.36,139.31,0.30113235]
[1767760063502,5.35317305,139.35,139.31,0.30113235]
[1767760063688,5.35317305,139.34,139.31,0.30113235]
[1767760063886,8.19012767,139.37,139.31,0.30113235]
[1767760064087,5.35384407,139.36,139.31,0.30113235]
[1767760064281,5.35384407,139.35,139.31,0.30113235]
[1767760064495,5.35384407,139.34,139.31,0.30113235]
[1767760064694,8.19012767,139.37,139.31,0.30113235]
[1767760064993,5.35508384,139.36,139.31,0.30113235]
[1767760065195,5.35508384,139.35,139.3,19.91510354]
[1767760065395,5.35508384,139.35,139.3,13.45030354]
[1767760066801,5.35508384,139.35,139.29,13.75143589]
[1767760067596,5.35508384,139.35,139.29,20.21683589]
[1767760068796,11.81798384,139.35,139.29,6.76653235]
[1767760069114,5.35508384,139.34,139.29,6.76653235]
[1767760072197,5.35508384,139.34,139.3,0.30113235]
[1767760074097,5.35508384,139.34,139.29,6.4654]
[1767760074701,5.35508384,139.34,139.29,6.76653235]
[1767760078108,5.35508384,139.34,139.3,0.30113235]
[1767760080308,5.35508384,139.34,139.3,6.76613235]
[1767760080497,8.19022767,139.37,139.3,6.76613235]
[1767760085416,6.4622,139.36,139.3,6.76613235]
[1767760086416,6.4622,139.36,139.3,0.30113235]
[1767760086715,6.4622,139.36,139.29,6.4654]
[1767760087838,6.4622,139.36,139.29,6.78498494]
[1767760091217,6.4622,139.36,139.3,0.31958494]
[1767760092923,6.4622,139.36,139.3,6.78458494]
[1767760093225,8.18982767,139.37,139.3,6.78458494]
[1767760094525,6.4618,139.37,139.3,6.78458494]
[1767760101140,84.84,139.39,139.28,6.4655]
[1767760101141,6.4628,139.35,139.28,6.4655]
[1767760101934,6.4628,139.35,139.28,6.78508494]
[1767760111146,6.4628,139.35,139.28,20.23538848]
[1767760113251,6.4628,139.35,139.29,0.32850177]
[1767760113844,6.4632,139.34,139.29,0.32850177]
[1767760114456,6.4627,139.35,139.29,0.32850177]
[1767760120054,6.4622,139.37,139.29,0.32850177]
[1767760120448,6.4622,139.37,139.3,0.32850177]
[1767760120957,6.4622,139.37,139.31,0.32850177]
[1767760123256,2.70124902,139.38,139.29,13.77880531]
[1767760123469,2.70124902,139.38,139.29,0.32850177]
[1767760124160,2.70124902,139.38,139.29,13.77880531]
[1767760124361,6.4627,139.35,139.29,13.77880531]
[1767760127464,6.4627,139.35,139.3,0.32850177]
[1767760133369,84.86,139.39,139.3,0.32850177]
[1767760134569,6.4618,139.37,139.3,6.79350177]
[1767760135469,6.4618,139.37,139.31,0.32850177]
[1767760144976,6.4624,139.36,139.31,0.32850177]
[1767760145278,2.70124902,139.36,139.29,13.75554286]
[1767760146576,6.4633,139.34,139.29,13.75554286]
[1767760146777,2.70124902,139.36,139.28,13.45030354]
[1767760147169,2.70124902,139.36,139.28,13.75554286]
[1767760147578,6.4632,139.34,139.28,13.75554286]
[1767760149478,6.4632,139.34,139.28,20.22144286]
[1767760154387,6.4632,139.34,139.29,0.30523932]
[1767760154586,8.19224049,139.34,139.29,0.30523932]
[1767760158791,1.72904049,139.34,139.29,0.30523932]
[1767760159492,1.72904049,139.34,139.29,6.77073932]
[1767760160090,1.72904049,139.34,139.3,6.77003932]
[1767760160283,1.72904049,139.36,139.3,6.77003932]
[1767760161696,8.19124049,139.36,139.3,6.77003932]
[1767760161995,8.19124049,139.36,139.31,0.30523932]
[1767760167600,1.72904049,139.36,139.31,0.30523932]
[1767760167801,1.72904049,139.4,139.33,0.30523932]
[1767760167992,1.72904049,139.39,139.33,0.30523932]
[1767760168305,1.72904049,139.39,139.33,9.27953378]
[1767760169605,8.18994049,139.39,139.33,9.27953378]
[1767760173108,8.18994049,139.39,139.33,0.30523932]
[1767760174609,1.72904049,139.37,139.32,0.32127291]
[1767760177808,6.4613,139.38,139.32,0.32127291]
[1767760180814,6.4613,139.38,139.33,0.32127291]
[1767760181013,8.18984049,139.4,139.33,0.32127291]
[1767760181418,6.461,139.39,139.33,6.78487291]
[1767760183917,1.72904049,139.38,139.33,6.78487291]
[1767760184215,8.19034049,139.38,139.31,15.75996737]
[1767760187121,1.72904049,139.36,139.31,8.97429446]
[1767760187622,1.72904049,139.35,139.31,8.97429446]
[1767760197926,8.19184049,139.35,139.31,8.97429446]
[1767760202022,8.19184049,139.35,139.31,9.2946721]
[1767760203725,8.19184049,139.35,139.31,8.97429446]
[1767760204424,1.72904049,139.35,139.31,9.2946721]
[1767760205127,6.4623,139.36,139.32,0.32037764]
[1767760206626,6.4619,139.37,139.32,0.32037764]
[1767760208934,100.4929,139.41,139.32,0.32037764]
[1767760209128,1.72904049,139.38,139.32,15.7586721]
[1767760210133,1.72904049,139.38,139.33,0.32037764]
[1767760213936,6.461,139.39,139.33,0.32037764]
[1767760214141,8.19004049,139.39,139.33,0.32037764]
[1767760215038,6.4614,139.38,139.33,0.32037764]
[1767760219143,6.4614,139.38,139.33,9.2946721]
[1767760220343,6.4609,139.39,139.34,0.32037764]
[1767760220543,100.4884,139.41,139.33,8.97429446]
[1767760220837,2.69972519,139.4,139.33,8.97429446]
[1767760221433,6.4623,139.36,139.33,8.97429446]
[1767760223132,6.4623,139.36,139.32,9.2946721]
[1767760228647,6.4618,139.37,139.32,9.2946721]
[1767760231445,2.69972519,139.38,139.32,7.21e-05]
[1767760231646,2.69972519,139.36,139.3,13.45030354]
[1767760232148,2.69972519,139.36,139.29,13.45030354]
[1767760232547,6.4631,139.35,139.29,13.45030354]
[1767760233449,6.4631,139.35,139.29,13.78114039]
[1767760236957,6.4631,139.35,139.3,0.33083685]
[1767760243861,6.4623,139.36,139.3,0.33083685]
[1767760245663,6.4623,139.36,139.31,0.33083685]
[1767760246159,6.4621,139.37,139.32,0.33083685]
[1767760247267,6.4613,139.38,139.33,0.33083685]
[1767760248763,84.86,139.42,139.34,0.33083685]
[1767760249870,6.4604,139.4,139.34,0.33083685]
[1767760252070,91.3198,139.42,139.35,0.33083685]
[1767760252270,84.86,139.42,139.35,0.33083685]
[1767760253570,6.46,139.41,139.35,0.33083685]
[1767760255467,6.4604,139.4,139.34,6.4629]
[1767760255770,6.4604,139.4,139.34,0.33083685]
[1767760259967,6.4604,139.4,139.34,6.79393685]
[1767760261474,6.4609,139.39,139.34,0.33083685]
[1767760262403,2.69972519,139.4,139.32,8.9612266]
[1767760262580,2.69972519,139.38,139.32,8.9612266]
[1767760263478,9.16152519,139.38,139.32,8.9612266]
[1767760264689,6.4618,139.37,139.32,8.9612266]
[1767760271489,6.4618,139.37,139.32,9.26489929]
[1767760274393,6.4618,139.37,139.33,0.30367269]
[1767760276296,6.4618,139.37,139.32,8.9612266]
[1767760277588,6.4618,139.37,139.32,9.26489929]
[1767760278897,6.4618,139.37,139.33,0.30367269]
[1767760284917,6.4618,139.37,139.32,8.9612266]
[1767760286015,6.4618,139.37,139.32,9.26489929]
[1767760287611,8.19039032,139.36,139.32,8.9612266]
[1767760294721,6.4623,139.36,139.32,8.9612266]
[1767760295216,8.18989032,139.37,139.32,8.9612266]
[1767760296021,1.72809032,139.4,139.33,0.30780854]
[1767760296220,1.72809032,139.41,139.34,0.30780854]
[1767760297615,6.4608,139.4,139.34,0.30780854]
[1767760299421,1.72809032,139.39,139.33,8.9612266]
[1767760300618,6.4613,139.38,139.33,8.9612266]
[1767760305930,6.4613,139.38,139.33,9.26903514]
[1767760307829,6.4606,139.4,139.34,0.30780854]
[1767760308033,1.72809032,139.42,139.35,0.30780854]
[1767760308241,1.72809032,139.42,139.36,0.30780854]
[1767760309537,6.4599,139.41,139.36,0.30780854]
[1767760316145,1.72809032,139.42,139.36,15.73123514]
[1767760316344,1.72809032,139.42,139.37,0.30780854]
[1767760316545,84.84,139.43,139.38,0.30780854]
[1767760316749,8.18689032,139.44,139.38,0.30780854]
[1767760318949,8.18689032,139.44,139.38,6.76900854]
[1767760319136,1.72809032,139.44,139.39,0.3315257]
[1767760322138,1.72809032,139.42,139.37,9.26765698]
[1767760322344,1.72809032,139.41,139.36,9.26765698]
[1767760325749,1.72809032,139.41,139.36,8.9612266]
[1767760326048,1.72809032,139.37,139.32,0.30643038]
[1767760327250,6.4606,139.4,139.33,0.30643038]
[1767760327456,1.72809032,139.42,139.33,0.30643038]
[1767760328649,1.72809032,139.43,139.37,0.30643038]
[1767760329752,1.72809032,139.43,139.37,6.76813038]
[1767760331249,1.72809032,139.43,139.37,0.30643038]
[1767760331453,1.72809032,139.41,139.37,0.30643038]
[1767760331853,1.72809032,139.41,139.35,6.76873038]
[1767760336659,1.72809032,139.41,139.32,113.99840354]
[1767760336660,6.4596,139.42,139.36,6.76863038]
[1767760336862,6.4596,139.42,139.32,113.99840354]
[1767760336863,1.72809032,139.43,139.37,0.30643038]
[1767760337161,6.4588,139.44,139.37,0.30643038]
[1767760338658,6.4588,139.44,139.37,6.76773038]
[1767760338867,6.4588,139.44,139.38,0.30643038]
[1767760339562,91.278,139.46,139.39,0.30643038]
[1767760340655,91.278,139.46,139.39,6.76723038]
[1767760340964,91.278,139.46,139.4,0.30643038]
[1767760341168,100.4124,139.52,139.42,0.30643038]
[1767760341357,2.69751503,139.5,139.42,0.30643038]
[1767760342568,2.69751503,139.5,139.42,6.4594]
[1767760342781,2.69751503,139.48,139.4,0.30643038]
[1767760343269,2.69751503,139.48,139.42,6.4594]
[1767760343465,2.69751503,139.5,139.42,6.4594]
[1767760343662,2.69751503,139.5,139.43,6.76533038]
[1767760343971,87.49751503,139.5,139.43,6.76533038]
[1767760345669,93.95331503,139.5,139.43,6.76533038]
[1767760346273,6.4562,139.49,139.43,0.30643038]
[1767760349867,6.4562,139.49,139.43,6.76543038]
[1767760350086,93.95341503,139.5,139.43,0.30643038]
[1767760350770,87.49751503,139.5,139.44,6.4585]
[1767760351073,84.8,139.5,139.44,6.76493038]
[1767760351370,2.69751503,139.52,139.44,6.76493038]
[1767760351874,6.4554,139.51,139.45,6.458]
[1767760352571,6.4554,139.51,139.44,0.30643038]
[1767760353578,6.4554,139.51,139.44,6.76493038]
[1767760355780,2.69751503,139.48,139.42,6.77377571]
[1767760356079,9.15421503,139.48,139.41,6.4599]
[1767760360889,2.69751503,139.44,139.36,0.31457571]
[1767760361891,6.459,139.43,139.36,0.31457571]
[1767760363195,6.459,139.43,139.36,6.77677571]
[1767760368592,6.459,139.43,139.37,0.31457571]
[1767760370392,2.69751503,139.44,139.37,6.77617571]
[1767760377805,9.15601503,139.44,139.37,6.77617571]
[1767760385015,9.15601503,139.44,139.38,0.32153598]
[1767760386712,9.15551503,139.46,139.39,0.32153598]
[1767760386912,6.458,139.46,139.39,0.32153598]
[1767760387708,6.458,139.46,139.4,0.32153598]
[1767760389417,6.4581,139.45,139.4,0.32153598]
[1767760398622,8.18445726,139.45,139.4,0.32153598]
[1767760404831,8.18445726,139.45,139.39,8.90874606]
[1767760405431,8.18445726,139.45,139.39,9.23028204]
[1767760409035,6.4586,139.44,139.39,9.23028204]
[1767760412835,6.4586,139.44,139.4,0.31683715]
[1767760424746,6.4586,139.44,139.38,6.4613]
[1767760424747,1.72644284,139.43,139.38,4.606e-05]
[1767760424944,100.458,139.46,139.35,0.31683715]
[1767760425136,1.72644284,139.42,139.35,0.31683715]
[1767760425342,1.72644284,139.44,139.35,0.31683715]
[1767760426243,8.18594284,139.42,139.36,6.77903715]
[1767760429851,1.72644284,139.42,139.36,6.77903715]
[1767760430037,1.72644284,139.42,139.37,0.31683715]
[1767760441359,1.72644284,139.42,139.35,0.32235343]
[1767760442651,6.4599,139.41,139.35,0.32235343]
[1767760450872,6.4599,139.41,139.35,6.78495343]
[1767760452880,6.4599,139.41,139.35,6.4626]
[1767760454881,6.4599,139.41,139.36,8.95582359]
[1767760456883,8.18594284,139.42,139.36,8.95582359]
[1767760460485,6.4595,139.42,139.36,8.95582359]
[1767760461490,6.46,139.41,139.36,8.95582359]
[1767760467099,6.46,139.41,139.32,0.30393031]
[1767760467100,2.69888898,139.4,139.32,0.30393031]
[1767760467698,87.51888898,139.4,139.32,0.30393031]
[1767760467894,6.4618,139.37,139.32,0.30393031]
[1767760470200,6.4618,139.37,139.3,20.21923385]
[1767760470998,6.4618,139.37,139.31,0.30393031]
[1767760471401,6.4623,139.36,139.31,0.30393031]
[1767760471698,2.69888898,139.36,139.29,0.30492375]
[1767760473618,2.69888898,139.36,139.29,6.77042375]
[1767760474299,6.4622,139.37,139.3,0.30492375]
[1767760475605,6.4623,139.36,139.3,0.30492375]
[1767760481910,5.35597945,139.35,139.3,0.30492375]
[1767760482206,6.4623,139.36,139.3,0.30492375]
[1767760482401,5.35572086,139.35,139.3,0.30492375]
[1767760482601,6.4623,139.36,139.3,0.30492375]
[1767760482808,5.35574122,139.35,139.3,0.30492375]
[1767760483022,6.4623,139.36,139.3,0.30492375]
[1767760483205,5.35572764,139.35,139.3,0.30492375]
[1767760483405,6.4623,139.36,139.3,0.30492375]
[1767760483708,5.35562852,139.35,139.3,0.30492375]
[1767760483904,6.4623,139.36,139.3,0.30492375]
[1767760484104,5.35562852,139.35,139.3,0.30492375]
[1767760484413,6.4623,139.36,139.3,0.30492375]
[1767760484612,5.35562743,139.35,139.3,0.30492375]
[1767760484910,6.4623,139.36,139.3,0.30492375]
[1767760485112,5.35562743,139.35,139.3,0.30492375]
[1767760485410,6.4623,139.36,139.3,0.30492375]
[1767760485612,5.35542114,139.35,139.3,0.30492375]
[1767760485910,6.4623,139.36,139.3,0.30492375]
[1767760486110,5.35542113,139.35,139.3,0.30492375]
[1767760486411,5.35492894,139.34,139.3,0.30492375]
[1767760486615,5.35492894,139.33,139.3,0.30492375]
[1767760486813,2.69888898,139.36,139.28,6.4659]
[1767760487008,5.35481045,139.35,139.28,6.4659]
[1767760487314,5.35481045,139.34,139.28,6.4659]